bitfinex/quotes_ETHUSD_20241216
["timestamp","ask_amount","ask_price","bid_price","bid_amount"]
[1734391018949,0.23017267,4022.3,4021.2,0.83644771]
[1734391019246,0.0310814,4022.6,4021.0,0.68214924]
[1734391019396,0.23012934,4022.5,4021.1,5.09145078]
[1734391019597,0.23012934,4022.4,4021.2,3.83658031]
[1734391019797,1.06158935,4022.8,4021.3,0.55584813]
[1734391020030,2.36215837,4022.7,4021.0,1.72190097]
[1734391020215,1.08294267,4022.6,4021.1,5.09137317]
[1734391020421,0.23013221,4022.5,4021.2,3.83654927]
[1734391020627,0.23013221,4022.5,4021.1,3.0]
[1734391020628,0.23013221,4022.4,4021.0,1.72190097]
[1734391020803,0.23013221,4022.4,4020.7,4.519389]
[1734391020804,1.08284706,4022.3,4020.7,4.519389]
[1734391021025,0.26121704,4022.2,4020.9,3.0]
[1734391021261,0.26121704,4022.2,4020.6,1.03975173]
[1734391021262,0.23013221,4022.1,4020.6,1.03975173]
[1734391021461,1.27598585,4022.4,4019.9,0.8169]
[1734391021462,0.26121823,4022.0,4020.7,2.09150818]
[1734391021761,1.27598585,4022.3,4020.8,0.83663698]
[1734391021762,0.23013221,4021.9,4020.8,0.83663698]
[1734391022053,1.03050796,4022.3,4020.5,1.03975173]
[1734391022251,0.25762699,4022.2,4020.6,1.51487117]
[1734391022454,0.25762699,4022.2,4020.7,2.0915554]
[1734391022661,3.16211894,4022.1,4020.7,3.0]
[1734391022822,2.13161098,4022.0,4020.6,0.25993793]
[1734391023007,0.03108604,4021.9,4020.6,0.25993793]
[1734391023375,0.31675483,4021.8,4020.6,0.25993793]
[1734391023648,1.30705399,4022.1,4020.6,0.25993793]
[1734391023956,0.85277104,4022.0,4020.7,0.83678058]
[1734391024266,1.54576195,4022.3,4020.8,5.0918827]
[1734391024267,1.03050796,4022.3,4020.8,5.0918827]
[1734391024403,0.88386556,4022.2,4020.9,0.83678058]
[1734391024606,1.27596781,4022.3,4020.9,0.24541052]
[1734391024867,1.5768445,4022.5,4021.0,2.40937951]
[1734391024868,1.27596781,4022.5,4021.0,2.40937951]
[1734391025004,0.24545985,4022.5,4021.1,0.8366905]
[1734391025205,1.03050796,4022.6,4021.2,0.31763492]
[1734391025206,0.2456303,4022.6,4021.2,0.31763492]
[1734391025504,0.85288322,4022.5,4021.2,0.31763492]
[1734391025705,0.2456303,4022.6,4021.2,0.31763492]
[1734391025945,0.85290244,4022.5,4021.2,0.31763492]
[1734391026314,0.2456303,4022.6,4021.2,0.31763492]
[1734391026858,1.27613826,4022.7,4021.2,0.31763492]
[1734391027010,0.2456303,4022.8,4021.3,2.22704218]
[1734391027366,0.2456303,4023.0,4021.4,2.09129535]
[1734391027545,0.2456303,4023.0,4021.3,4.49312532]
[1734391027546,0.2456303,4023.0,4021.5,2.09129535]
[1734391027708,0.2456303,4023.0,4021.3,1.49312532]
[1734391028063,0.2456303,4023.0,4021.4,5.4085828]
[1734391028277,1.54576195,4023.3,4022.1,1.03975173]
[1734391028278,0.2456303,4023.3,4022.1,1.03975173]
[1734391028583,0.2456303,4023.3,4021.6,3.55]
[1734391028584,0.2456303,4023.8,4022.2,5.9584936]
[1734391028775,0.50488026,4024.2,4022.3,6.13069961]
[1734391028911,0.50488026,4024.2,4022.4,5.4233328]
[1734391029111,0.50488026,4024.2,4022.5,5.09094788]
[1734391029360,0.15353882,4024.1,4022.5,0.67948728]
[1734391029512,0.03107066,4024.0,4022.1,1.03975173]
[1734391029943,0.18460953,4024.1,4022.2,3.0]
[1734391030105,0.18460953,4024.1,4022.3,5.08476133]
[1734391030308,0.18460953,4024.1,4022.4,0.83390453]
[1734391030505,0.18460953,4024.1,4022.1,0.33238492]
[1734391030686,0.18460953,4024.1,4022.3,3.0]
[1734391031091,0.2592007,4024.0,4022.2,0.43721367]
[1734391031270,0.0310707,4023.9,4022.2,0.43721367]
[1734391032001,0.15353882,4024.1,4022.2,0.43721367]
[1734391032002,0.03107071,4024.0,4022.7,3.0]
[1734391032212,0.03107071,4024.0,4022.3,0.33238492]
[1734391032752,0.0310707,4024.3,4022.3,0.33238492]
[1734391034061,0.22971114,4024.2,4022.3,0.33238492]
[1734391034401,0.26078184,4024.1,4022.3,0.33238492]
[1734391034583,0.22971114,4024.0,4022.3,0.33238492]
[1734391034785,0.26078185,4023.9,4022.3,0.33238492]
[1734391034995,0.22971114,4023.8,4022.3,0.33238492]
[1734391035305,0.22971114,4023.7,4022.3,0.33238492]
[1734391035504,0.03107071,4023.9,4022.3,0.33238492]
[1734391035662,0.22964453,4023.8,4022.3,0.33238492]
[1734391035988,0.25919043,4023.6,4022.3,0.33238492]
[1734391036203,0.25919043,4023.6,4021.9,0.8028]
[1734391036204,0.0310714,4023.5,4021.9,0.8028]
[1734391036383,0.0310714,4023.5,4022.0,0.53004013]
[1734391037064,0.03107247,4023.5,4022.0,0.53004013]
[1734391037718,0.03107247,4023.5,4022.0,0.86242505]
[1734391037883,0.25919043,4023.6,4022.0,0.86242505]
[1734391038265,0.25919043,4023.6,4022.1,0.33238492]
[1734391038466,0.25919043,4023.6,4022.7,3.0]
[1734391038974,0.25919043,4023.6,4022.2,0.49831073]
[1734391039190,0.25919043,4023.6,4022.3,0.33238492]
[1734391039392,0.25919043,4023.6,4022.7,3.0]
[1734391039790,0.25919043,4023.6,4022.3,0.33238492]
[1734391042582,0.25919043,4023.6,4022.4,0.8028]
[1734391042827,0.25919043,4023.6,4022.5,0.46255566]
[1734391044948,0.25919043,4023.6,4022.4,0.8028]
[1734391045120,0.25919043,4023.6,4022.0,0.7705]
[1734391045418,0.25919043,4023.6,4022.0,1.10288492]
[1734391045583,0.25919043,4023.6,4022.1,0.33238492]
[1734391045786,0.25919043,4023.6,4022.4,3.0]
[1734391046003,0.25919043,4023.6,4022.5,0.3]
[1734391046321,0.25919043,4023.6,4022.4,3.0]
[1734391046618,0.25919043,4023.6,4022.1,0.33238492]
[1734391046985,0.25919043,4023.6,4022.5,3.0]
[1734391047517,0.25919043,4023.6,4021.3,0.7705]
[1734391047518,0.26096827,4023.5,4021.3,0.7705]
[1734391047724,0.26096827,4023.5,4021.0,1.55962759]
[1734391047725,0.22989767,4023.4,4021.0,1.03975173]
[1734391047927,0.26094657,4023.3,4020.9,0.7705]
[1734391048222,0.22986706,4023.2,4021.1,0.45384587]
[1734391048371,0.26094616,4023.1,4021.1,0.45384587]
[1734391048667,0.22986706,4023.0,4021.1,0.33238492]
[1734391048869,0.26094644,4022.9,4021.1,0.33238492]
[1734391049112,0.22986706,4022.8,4021.9,3.0]
[1734391049284,0.03107986,4022.7,4021.1,0.33238492]
[1734391049480,0.22992989,4022.6,4021.1,0.33238492]
[1734391049818,0.55,4023.5,4021.1,0.33238492]
[1734391049819,0.26100142,4022.5,4021.1,0.33238492]
[1734391049971,0.22992149,4022.4,4021.1,0.33238492]
[1734391050172,0.03108101,4023.1,4021.1,0.33238492]
[1734391050401,0.22992047,4023.0,4021.1,0.33238492]
[1734391050713,0.26100179,4022.9,4021.1,0.33238492]
[1734391050884,0.22992047,4022.8,4021.1,0.33238492]
[1734391051090,0.03108132,4022.7,4021.1,0.33238492]
[1734391051289,0.22991864,4022.6,4021.1,0.33238492]
[1734391051489,0.03108132,4022.5,4021.1,0.33238492]
[1734391051691,0.03108132,4023.1,4021.2,0.33323849]
[1734391051909,0.22998643,4023.0,4021.1,0.33238492]
[1734391052108,0.26106774,4022.9,4021.1,0.33238492]
[1734391052297,0.22998643,4022.8,4021.1,0.33238492]
[1734391052613,0.22998643,4022.7,4021.1,0.33238492]
[1734391052771,0.24519246,4023.1,4021.1,0.33238492]
[1734391052772,0.22998643,4022.6,4021.1,0.33238492]
[1734391052971,0.22998643,4022.5,4021.1,0.33238492]
[1734391053201,0.26106773,4022.4,4021.1,0.33238492]
[1734391053411,0.26106773,4022.4,4020.7,0.12184226]
[1734391053412,0.22998643,4022.3,4020.7,0.12184226]
[1734391053616,0.03108168,4022.2,4020.8,0.22644789]
[1734391053822,0.22998643,4022.1,4020.9,3.0]
[1734391053990,0.22998643,4022.1,4020.8,0.22644789]
[1734391053991,0.03108168,4022.8,4020.8,0.22644789]
[1734391054193,0.23010444,4022.7,4020.9,3.0]
[1734391054407,0.26118758,4022.6,4020.8,0.22644789]
[1734391054610,0.23010444,4022.5,4020.6,0.33238492]
[1734391054776,0.03108314,4022.6,4020.2,0.7705]
[1734391054781,0.26118884,4022.4,4020.2,0.7705]
[1734391054981,0.26118884,4022.4,4020.1,1.28762955]
[1734391054982,0.23010444,4022.3,4020.3,0.83335698]
[1734391055186,0.23010444,4022.3,4020.1,0.58026274]
[1734391055187,0.26119037,4022.2,4020.1,0.58026274]
[1734391055384,0.23010444,4022.1,4020.2,0.83341903]
[1734391055613,0.26119035,4022.0,4020.3,0.24534335]
[1734391055803,0.23010444,4021.9,4020.3,0.24534335]
[1734391055999,0.26119035,4021.8,4020.3,0.24534335]
[1734391056245,0.03108591,4021.8,4020.3,0.24534335]
[1734391056428,0.03108591,4022.4,4020.3,0.24534335]
[1734391056587,0.23002106,4022.3,4020.4,0.18653578]
[1734391056781,0.26110697,4022.2,4020.4,0.17653578]
[1734391057011,0.23002106,4022.1,4020.5,3.0]
[1734391057245,1.54576195,4022.9,4020.5,3.0]
[1734391057246,1.54576195,4024.2,4022.2,0.55]
[1734391057389,1.54576195,4025.0,4022.4,3.55]
[1734391057597,0.36067779,4024.9,4022.7,0.55]
[1734391057886,0.02874807,4025.2,4022.9,0.55]
[1734391058130,2.12998867,4025.1,4023.0,1.09196333]
[1734391058295,2.12998867,4025.1,4023.0,0.42295733]
[1734391058296,0.02874807,4025.0,4023.0,0.42295733]
[1734391058684,0.85189033,4024.9,4023.0,0.42295733]
[1734391058921,0.02874807,4024.8,4023.0,0.42295733]
[1734391059101,3.0,4025.2,4023.0,0.42295733]
[1734391059303,2.60105107,4025.1,4023.0,0.42295733]
[1734391059504,0.85194613,4025.0,4023.1,0.02485225]
[1734391059714,0.47118575,4025.1,4023.1,0.02485225]
[1734391059715,0.47118575,4025.1,4023.2,0.39629066]
[1734391060264,0.1660955,4025.3,4023.2,0.39629066]
[1734391060411,2.1296801,4025.2,4023.2,0.39629066]
[1734391060610,0.85187204,4025.1,4023.2,0.39629066]
[1734391060840,0.1660955,4025.3,4023.2,0.39629066]
[1734391061150,2.12949605,4025.2,4023.2,0.39629066]
[1734391061320,1.53593377,4025.1,4023.2,0.39629066]
[1734391061654,0.68413535,4025.1,4023.2,0.39629066]
[1734391061812,0.1660955,4025.3,4023.2,0.39629066]
[1734391062013,2.12933692,4025.2,4023.2,0.39629066]
[1734391062255,0.85173477,4025.1,4023.2,0.39629066]
[1734391062548,0.1660955,4025.3,4023.2,0.39629066]
[1734391062750,2.12922631,4025.2,4023.2,0.39629066]
[1734391062956,1.5357989,4025.1,4023.2,0.39629066]
[1734391063123,0.68410838,4025.1,4023.2,0.39629066]
[1734391063330,0.1660955,4025.3,4023.2,0.39629066]
[1734391063513,2.12913258,4025.2,4023.2,0.39629066]
[1734391063709,2.12913258,4025.2,4022.7,0.57485223]
[1734391063909,2.12913258,4025.2,4022.6,0.7705]
[1734391063910,0.02874807,4025.1,4022.6,0.7705]
[1734391064152,0.8516282,4025.0,4022.6,0.7705]
[1734391064317,0.1717857,4024.9,4022.7,0.44734029]
[1734391064511,0.1717857,4024.9,4022.6,0.7705]
[1734391064512,0.02874807,4024.9,4022.6,0.7705]
[1734391064916,0.55,4024.7,4022.6,0.7705]
[1734391065119,0.55,4024.5,4022.6,0.7705]
[1734391065318,2.15752975,4024.4,4022.6,0.7705]
[1734391065651,0.85152165,4024.3,4022.6,0.7705]
[1734391065962,0.17177504,4024.2,4022.6,0.7705]
[1734391066451,0.02874807,4024.2,4022.6,0.7705]
[1734391066810,0.02874807,4024.5,4022.6,0.7705]
[1734391067008,2.12893193,4024.4,4022.6,0.7705]
[1734391067214,0.02874807,4024.5,4022.6,0.7705]
[1734391067215,0.02874807,4024.3,4022.6,0.7705]
[1734391067654,0.02874807,4024.3,4021.9,0.769]
[1734391067655,1.05862239,4024.3,4021.9,0.769]
[1734391067863,1.02987432,4023.9,4021.9,0.769]
[1734391068029,5.09576195,4024.1,4021.9,0.769]
[1734391068030,0.88038847,4023.8,4021.9,0.769]
[1734391068215,0.02874807,4023.8,4021.9,0.769]
[1734391068556,0.85176233,4023.7,4021.9,0.769]
[1734391068754,0.02874807,4023.6,4021.9,0.769]
[1734391069115,0.22990275,4023.5,4021.9,0.769]
[1734391069410,1.02987432,4023.8,4021.9,0.769]
[1734391069411,0.25865082,4023.4,4021.9,0.769]
[1734391069610,0.22990275,4023.3,4021.9,0.769]
[1734391069961,0.25865082,4023.2,4021.9,0.769]
[1734391070156,0.22990275,4023.1,4021.9,0.769]
[1734391070364,0.22990275,4023.0,4021.9,0.769]
[1734391070533,0.02874807,4023.2,4021.9,0.769]
[1734391070739,0.22989259,4023.1,4021.9,0.769]
[1734391070935,0.22989259,4023.0,4021.9,0.769]
[1734391071138,0.02874807,4023.6,4021.9,0.769]
[1734391071336,1.48806942,4023.5,4021.9,0.769]
[1734391071530,0.25863896,4023.4,4021.9,0.769]
[1734391071730,0.22989089,4023.3,4021.9,0.769]
[1734391071951,0.25863896,4023.2,4021.9,0.769]
[1734391072141,0.22989089,4023.1,4021.9,0.769]
[1734391072429,0.02874807,4023.2,4021.9,0.769]
[1734391072430,0.22989089,4023.0,4021.9,0.769]
[1734391072629,0.02874807,4023.2,4021.9,0.769]
[1734391072863,0.22989228,4023.1,4021.9,0.769]
[1734391073067,0.43461031,4023.5,4021.9,0.769]
[1734391073252,0.22989638,4023.4,4021.9,0.769]
[1734391073454,0.02874807,4023.5,4021.9,0.769]
[1734391073455,0.22989638,4023.3,4021.9,0.769]
[1734391073641,0.22989638,4023.2,4021.9,0.769]
[1734391073831,0.22989638,4023.6,4021.9,0.769]
[1734391074062,0.22991271,4023.5,4021.9,0.769]
[1734391074260,0.22991271,4023.4,4021.9,0.769]
[1734391074458,0.22991271,4023.3,4021.9,0.769]
[1734391074658,0.02874807,4023.7,4021.9,0.769]
[1734391074659,0.22991271,4023.2,4021.9,0.769]
[1734391074957,1.05862239,4023.8,4021.9,0.769]
[1734391075166,1.642885,4023.7,4021.9,0.769]
[1734391075370,0.258671,4023.6,4021.9,0.769]
[1734391075572,0.22992293,4023.5,4022.0,0.769]
[1734391075744,0.22992293,4023.5,4021.6,0.150018]
[1734391075745,0.56043843,4023.7,4022.1,3.0]
[1734391075945,0.22994094,4023.6,4021.9,0.769]
[1734391076147,0.22994094,4023.5,4022.1,3.0]
[1734391076378,1.02987432,4024.1,4021.8,1.03975173]
[1734391076379,0.02874807,4024.0,4022.2,0.769]
[1734391076585,0.22994986,4023.9,4022.2,0.769]
[1734391076786,0.25869793,4023.8,4022.2,0.769]
[1734391076986,0.22994986,4023.7,4022.2,0.769]
[1734391077151,0.22995134,4023.6,4022.2,0.769]
[1734391077348,0.02874807,4024.1,4022.2,0.769]
[1734391077547,0.02874807,4024.1,4021.9,1.03975173]
[1734391077548,0.42674721,4024.0,4021.9,1.03975173]
[1734391077848,0.25870125,4023.9,4022.0,2.04735827]
[1734391078151,0.22995318,4023.8,4022.3,0.769]
[1734391078345,1.02987432,4024.3,4022.3,0.769]
[1734391078346,0.25920664,4024.5,4022.6,0.7867]
[1734391078591,0.25920664,4024.5,4022.7,0.7867]
[1734391078592,0.22997428,4024.4,4022.7,0.7867]
[1734391078885,0.22997428,4024.3,4022.7,0.7867]
[1734391079087,0.22997428,4024.2,4022.9,0.7867]
[1734391079273,1.02987432,4024.8,4022.9,0.7867]
[1734391079274,0.22996644,4024.1,4022.9,0.7867]
[1734391079471,1.02987432,4024.8,4022.9,0.7867]
[1734391079657,1.08269888,4024.7,4022.9,0.7867]
[1734391079859,0.22997637,4024.6,4022.9,0.7867]
[1734391080048,0.38758432,4024.5,4022.9,0.7867]
[1734391080391,0.15760795,4024.5,4022.9,0.7867]
[1734391080564,0.22997679,4024.4,4022.9,0.7867]
[1734391080761,0.25872486,4024.3,4022.9,0.7867]
[1734391080964,0.22997679,4024.2,4022.9,0.7867]
[1734391081159,0.38758478,4024.1,4022.9,0.7867]
[1734391081460,0.22997679,4024.0,4022.9,0.7867]
[1734391081791,1.1587342,4024.5,4022.9,0.7867]
[1734391081792,0.22997679,4023.9,4022.9,0.7867]
[1734391081973,0.22997679,4023.8,4022.9,0.7867]
[1734391082163,0.22997679,4023.7,4022.9,0.7867]
[1734391082349,1.05862239,4024.4,4022.9,0.7867]
[1734391082549,1.35590805,4024.3,4022.9,0.7867]
[1734391082795,0.23002105,4024.2,4022.9,0.7867]
[1734391082950,0.23002105,4024.1,4022.9,0.7867]
[1734391083152,0.23002105,4024.0,4022.9,0.7867]
[1734391083450,0.23002105,4023.9,4022.9,0.7867]
[1734391083655,0.23002105,4023.8,4022.9,0.7867]
[1734391083996,0.27332442,4024.3,4022.9,0.7867]
[1734391084151,0.23009567,4024.2,4022.9,0.7867]
[1734391084350,0.23009567,4024.1,4022.9,0.7867]
[1734391084674,0.23009567,4024.0,4022.9,0.7867]
[1734391084990,1.1587342,4024.5,4022.9,0.7867]
[1734391084991,0.23009567,4023.9,4022.9,0.7867]
[1734391085185,0.23009567,4023.8,4022.9,0.7867]
[1734391085393,0.23009567,4023.7,4022.9,0.7867]
[1734391085603,0.23028718,4023.6,4022.9,0.7867]
[1734391085766,0.02874807,4024.4,4022.9,0.7867]
[1734391085951,0.8526012,4024.3,4022.9,0.7867]
[1734391086150,1.31564885,4024.2,4022.9,0.7867]
[1734391086402,0.23045445,4024.1,4022.9,0.7867]
[1734391086690,0.25920252,4024.0,4022.9,0.7867]
[1734391086893,0.23045445,4023.9,4022.9,0.7867]
[1734391087207,0.20400835,4024.2,4022.9,0.7867]
[1734391087208,0.25920252,4023.8,4022.9,0.7867]
[1734391087486,0.25920252,4023.8,4021.8,0.7867]
[1734391087487,1.08296961,4023.7,4021.8,0.7867]
[1734391087652,2.60446383,4023.6,4021.8,0.7867]
[1734391087854,2.36151332,4023.5,4021.8,0.7867]
[1734391088053,2.39016915,4023.4,4021.8,0.7867]
[1734391088304,0.23045445,4023.3,4021.8,0.7867]
[1734391088453,0.25920252,4023.2,4021.8,0.7867]
[1734391088791,0.23045445,4023.1,4021.8,0.7867]
[1734391089092,0.25920252,4023.0,4021.8,0.7867]
[1734391089277,0.23045445,4022.9,4021.8,0.7867]
[1734391089476,0.23045445,4022.8,4021.8,0.7867]
[1734391089676,0.25920252,4022.7,4021.8,0.7867]
[1734391089890,0.23045445,4022.6,4021.4,0.7867]
[1734391090089,0.25920252,4022.5,4021.0,0.7867]
[1734391090261,0.23045445,4022.4,4021.0,0.7867]
[1734391090564,0.02874807,4022.5,4021.0,0.7867]
[1734391090565,0.25920252,4022.3,4021.0,0.7867]
[1734391090779,0.25920252,4022.3,4019.6,2.07950346]
[1734391090780,0.35936213,4022.2,4020.1,0.7867]
[1734391090987,0.25920252,4022.1,4020.1,0.7867]
[1734391091187,1.08238174,4022.0,4020.1,0.7867]
[1734391091365,0.23045445,4021.9,4020.1,0.7867]
[1734391091566,0.23045445,4021.8,4020.1,0.7867]
[1734391091796,0.25920252,4021.7,4020.1,0.7867]
[1734391092005,0.12890768,4022.2,4020.1,0.7867]
[1734391092006,0.23045445,4021.6,4020.1,0.7867]
[1734391092300,0.25920252,4021.5,4020.1,0.7867]
[1734391092463,0.23045445,4021.4,4020.1,0.7867]
[1734391092648,1.158782,4022.2,4020.1,0.7867]
[1734391092649,0.25920252,4021.3,4020.1,0.7867]
[1734391092850,1.158782,4022.2,4020.1,0.7867]
[1734391092851,0.55,4022.1,4020.1,0.7867]
[1734391093056,0.40082403,4022.0,4020.1,0.7867]
[1734391093250,0.22994583,4021.9,4020.1,0.7867]
[1734391093498,0.22994583,4021.8,4020.1,0.7867]
[1734391093795,0.22994583,4021.8,4019.7,0.02487301]
[1734391093796,0.22994583,4021.7,4020.2,3.0]
[1734391093997,0.22994583,4021.6,4020.3,0.7677]
[1734391094199,0.02874807,4022.0,4020.3,0.7677]
[1734391094500,0.22989117,4021.9,4020.3,0.7677]
[1734391094670,0.25863924,4021.8,4020.3,0.7677]
[1734391094867,0.22989117,4021.7,4020.3,0.7677]
[1734391095068,0.25863924,4021.6,4020.3,0.7677]
[1734391095257,0.02874807,4021.6,4020.3,0.7677]
[1734391095598,0.22977501,4021.5,4020.3,0.7677]
[1734391095916,0.02874807,4022.3,4020.3,0.7677]
[1734391096208,0.22977645,4022.2,4020.3,0.7677]
[1734391096500,0.25852452,4022.1,4020.3,0.7677]
[1734391096703,0.22977645,4022.0,4020.3,0.7677]
[1734391096860,0.25852452,4021.9,4020.3,0.7677]
[1734391097056,0.22977645,4021.8,4020.3,0.7677]
[1734391097253,0.25852452,4021.7,4020.3,0.7677]
[1734391097623,0.22977645,4021.6,4020.3,0.7677]
[1734391097910,0.25852452,4021.5,4020.3,0.7677]
[1734391098064,0.22977645,4021.4,4020.3,0.7677]
[1734391098259,0.02874807,4021.3,4020.3,0.7677]
[1734391098458,1.02987432,4022.4,4020.3,0.7677]
[1734391098459,0.02874807,4022.3,4020.3,0.7677]
[1734391098795,0.55,4022.1,4020.3,0.7677]
[1734391099110,0.25830499,4022.0,4019.3,0.55]
[1734391099398,0.25830499,4022.0,4019.0,1.51205208]
[1734391099399,0.55,4021.8,4019.4,0.7677]
[1734391099714,0.25830499,4021.7,4019.4,0.7677]
[1734391100004,0.22955692,4021.6,4019.4,0.7677]
[1734391100166,0.25830499,4021.5,4019.4,0.7677]
[1734391100355,0.22955692,4021.4,4019.4,0.7677]
[1734391100557,0.25830499,4021.3,4019.4,0.7677]
[1734391100757,0.22955692,4021.2,4019.4,0.7677]
[1734391101058,0.02874807,4021.1,4019.4,0.7677]
[1734391101258,1.02987432,4022.1,4019.4,0.7677]
[1734391101259,0.55,4021.4,4019.4,0.7677]
[1734391101501,0.55,4021.4,4018.4,1.03975173]
[1734391101502,0.55,4021.2,4018.5,0.7677]
[1734391101798,0.55,4021.0,4018.5,0.7677]
[1734391102011,0.55,4020.8,4018.5,0.7677]
[1734391102215,0.25799118,4020.7,4018.5,0.7677]
[1734391102373,0.77924311,4020.6,4018.5,0.7677]
[1734391102574,0.55,4020.4,4018.5,0.7677]
[1734391102794,0.3937903,4020.3,4018.5,0.7677]
[1734391103002,0.16454719,4020.3,4018.5,0.7677]
[1734391103311,0.22903915,4020.2,4017.9,0.7677]
[1734391103506,0.02874807,4020.1,4017.9,0.7677]
[1734391103657,0.25778722,4020.1,4017.9,0.7677]
[1734391103858,0.22903915,4020.0,4017.9,0.7677]
[1734391104079,0.02874807,4019.9,4017.9,0.7677]
[1734391104675,0.22865586,4019.8,4017.9,0.7677]
[1734391105006,0.02874807,4019.7,4017.9,0.7677]
[1734391105212,0.02874807,4019.7,4017.9,1.118324]
[1734391105872,0.02874807,4020.3,4017.9,1.118324]
[1734391106072,0.55,4020.1,4017.9,1.118324]
[1734391106309,0.25723337,4020.0,4017.9,1.118324]
[1734391106624,3.0,4020.6,4018.0,0.79258569]
[1734391106821,0.25,4021.0,4018.1,3.0]
[1734391106822,1.10713079,4020.5,4018.1,3.0]
[1734391106979,1.10713079,4020.5,4018.0,1.118324]
[1734391106980,0.22838272,4020.4,4018.0,1.118324]
[1734391107184,0.55,4020.3,4018.0,1.118324]
[1734391107378,0.02874807,4020.2,4018.0,1.118324]
[1734391107986,0.02874807,4020.2,4018.0,0.7677]
[1734391108313,0.02874807,4020.9,4018.3,3.0]
[1734391108517,0.2113497,4020.8,4018.4,1.1027624]
[1734391108818,0.2113497,4020.8,4018.6,3.0]
[1734391108819,0.02874807,4020.7,4018.6,3.0]
[1734391108971,0.02874807,4020.7,4018.4,0.7677]
[1734391108972,0.22833954,4020.6,4018.4,0.7677]
[1734391109296,0.25708761,4020.5,4017.6,0.7516]
[1734391109480,0.22833954,4020.4,4018.6,3.0]
[1734391109684,0.55,4020.3,4018.6,3.0]
[1734391109887,0.02874807,4020.4,4018.6,3.0]
[1734391110313,0.22836644,4020.3,4018.6,3.0]
[1734391110609,0.80711451,4020.2,4018.3,3.0]
[1734391110812,0.02874807,4020.2,4018.0,0.7516]
[1734391111197,0.994218,4020.1,4018.3,3.0]
[1734391111426,0.994218,4020.1,4018.0,0.7516]
[1734391111427,0.02874807,4020.0,4018.0,0.7516]
[1734391111804,0.55,4019.8,4017.1,0.55]
[1734391111970,0.16446196,4019.7,4017.1,0.55]
[1734391112167,0.02874807,4019.7,4017.3,0.55]
[1734391112413,0.22840324,4019.6,4017.3,0.55]
[1734391112614,0.02874807,4019.5,4017.3,0.55]
[1734391113612,0.02874807,4019.9,4017.2,0.7516]
[1734391113814,0.55,4019.7,4017.2,0.7516]
[1734391114014,0.55,4019.5,4017.2,0.7516]
[1734391114220,0.3929298,4019.4,4017.2,0.7516]
[1734391114420,0.16446896,4019.4,4017.2,0.7516]
[1734391114582,0.02874807,4019.4,4017.2,0.7516]
[1734391115423,0.55,4019.5,4017.2,0.7516]
[1734391115424,0.2286632,4019.3,4017.8,3.0]
[1734391115582,0.55,4019.5,4017.2,0.7516]
[1734391115785,0.22866264,4019.4,4017.2,0.7516]
[1734391116015,0.57874807,4020.0,4017.2,1.102224]
[1734391116195,0.55,4019.8,4017.2,1.102224]
[1734391116520,0.55,4019.6,4017.8,3.0]
[1734391116706,0.22881604,4019.5,4017.8,3.0]
[1734391116903,0.22881604,4019.4,4017.5,3.0]
[1734391117103,0.55,4019.6,4017.5,3.0]
[1734391117104,0.22881604,4019.3,4017.5,3.0]
[1734391117306,0.22881604,4019.2,4017.6,0.3]
[1734391117495,0.22881604,4019.1,4017.6,0.7501]
[1734391117694,0.994218,4020.1,4017.9,3.7501]
[1734391118021,0.22889189,4020.0,4018.1,0.7501]
[1734391118223,0.22906731,4019.9,4018.4,0.55]
[1734391118518,0.02874807,4020.7,4018.4,0.55]
[1734391118720,0.02874807,4020.7,4018.5,0.43001]
[1734391118721,0.2290746,4020.6,4018.5,0.43001]
[1734391118934,0.25782267,4020.5,4018.4,0.55]
[1734391119219,0.2290746,4020.4,4018.4,0.55]
[1734391119420,0.25782267,4020.3,4018.4,0.55]
[1734391119621,0.2290746,4020.2,4018.4,0.55]
[1734391119834,0.25782267,4020.1,4018.4,0.7501]
[1734391120125,0.2290746,4020.0,4018.5,0.43001]
[1734391120369,0.2290746,4019.9,4018.5,0.43001]
[1734391120661,0.02874807,4020.7,4018.5,0.55]
[1734391120962,0.22936034,4020.6,4018.5,3.55]
[1734391121171,0.25810841,4020.5,4018.5,3.55]
[1734391121509,0.22936034,4020.4,4018.5,0.55]
[1734391121710,0.25810841,4020.3,4018.5,0.55]
[1734391121962,0.25810841,4020.3,4018.6,3.13001]
[1734391121963,0.22936034,4020.2,4018.6,3.13001]
[1734391122309,0.22936034,4020.2,4018.6,0.13001]
[1734391122514,0.22936034,4020.1,4018.6,3.480634]
[1734391122727,0.02874807,4021.0,4018.6,3.480634]
[1734391122728,0.22936034,4020.0,4018.6,3.480634]
[1734391122945,0.02874807,4020.7,4018.7,3.0]
[1734391123110,0.22948115,4020.6,4018.8,0.3480634]
[1734391123317,0.7501,4020.8,4018.8,0.3480634]
[1734391123318,0.25822922,4020.5,4018.8,0.3480634]
[1734391123568,0.22948115,4020.4,4018.7,3.0]
[1734391123711,0.25822922,4020.3,4018.7,3.0]
[1734391123911,0.22948115,4020.2,4018.6,0.13001]
[1734391124157,0.22948115,4020.1,4018.6,0.13001]
[1734391124313,0.22948115,4020.0,4018.6,0.13001]
[1734391124514,0.22948115,4019.9,4018.8,3.0]
[1734391124709,0.22948115,4019.8,4018.9,0.313001]
[1734391124943,0.02874807,4020.3,4018.9,0.313001]
[1734391125229,0.22969385,4020.2,4018.9,0.313001]
[1734391125429,0.22969385,4020.1,4018.9,0.313001]
[1734391125630,0.22969385,4020.0,4018.9,0.313001]
[1734391125940,0.22969385,4019.9,4018.6,0.13001]
[1734391126138,0.22969385,4019.8,4018.9,3.0]
[1734391126345,0.22969385,4019.7,4018.6,0.13001]
[1734391126537,0.02874807,4020.7,4018.9,3.0]
[1734391126840,0.22983199,4020.6,4018.9,3.0]
[1734391127161,0.25858006,4020.5,4018.9,3.313001]
[1734391127467,0.22983199,4020.4,4018.9,3.313001]
[1734391127673,0.25858006,4020.3,4018.9,3.313001]
[1734391127859,0.25858006,4020.3,4018.6,0.13001]
[1734391127860,0.22983199,4020.2,4018.6,0.13001]
[1734391128069,0.02874807,4020.1,4018.9,3.0]
[1734391128233,0.22994629,4020.0,4018.9,3.0]
[1734391128434,0.22994629,4019.9,4018.9,3.0]
[1734391128673,0.22994629,4019.8,4018.9,3.0]
[1734391128877,0.22994629,4019.7,4018.9,3.0]